bitfinex-derivatives/quotes_BTCF0:USTF0_20210108
["timestamp","ask_amount","ask_price","bid_price","bid_amount"]
[1610093124556,0.15039231,38613.0,38598.0,0.00031972]
[1610093124756,0.13632608,38599.0,38595.0,0.1366458]
[1610093125158,0.13632608,38599.0,38595.0,0.13632608]
[1610093125458,0.13632608,38599.0,38596.0,0.00031972]
[1610093127360,0.43146514,38609.0,38596.0,0.00031972]
[1610093127661,0.43165167,38610.0,38596.0,0.00031972]
[1610093128061,0.50108886,38612.0,38596.0,0.00031972]
[1610093128062,0.01407248,38613.0,38596.0,0.00031972]
[1610093128561,0.01406718,38612.0,38596.0,0.00031972]
[1610093128762,0.13632608,38600.0,38596.0,0.00031972]
[1610093129964,0.01406718,38612.0,38596.0,0.00031972]
[1610093130266,0.10016,38614.0,38597.0,0.00031971]
[1610093130565,3.5522,38644.0,38596.0,0.00031969]
[1610093130765,0.01407425,38616.0,38596.0,0.00031969]
[1610093130964,0.01407425,38616.0,38598.0,0.00031969]
[1610093131166,0.54143535,38619.0,38597.0,0.00031967]
[1610093131465,0.54143535,38619.0,38599.0,0.00031965]
[1610093131764,0.54143535,38619.0,38599.0,0.09928]
[1610093131966,0.43325303,38621.0,38600.0,0.00031962]
[1610093132369,0.56215209,38629.0,38600.0,0.00031962]
[1610093132669,0.56215209,38629.0,38600.0,0.03192403]
[1610093132869,0.12788,38629.0,38628.0,0.13632608]
[1610093133067,0.43457249,38632.0,38628.0,0.13632608]
[1610093133267,0.01414952,38632.0,38628.0,0.13632608]
[1610093133568,0.43475635,38632.0,38628.0,0.13632608]
[1610093133872,0.01415978,38633.0,38628.0,0.13632608]
[1610093134269,0.43508997,38633.0,38628.0,0.13632608]
[1610093134570,0.01415978,38633.0,38628.0,0.13632608]
[1610093134770,0.01415978,38633.0,38632.0,0.13632608]
[1610093135470,0.01415978,38633.0,38614.0,0.08129]
[1610093135873,0.42118467,38633.0,38615.0,0.00031953]
[1610093136273,0.01416569,38631.0,38615.0,0.00031953]
[1610093136470,0.01416569,38631.0,38616.0,3.5886]
[1610093136872,0.50455173,38631.0,38630.0,0.13632608]
[1610093137274,0.50455173,38631.0,38630.0,0.66522608]
[1610093137476,0.50455173,38631.0,38630.0,0.66554555]
[1610093137677,0.01418845,38641.0,38630.0,0.78641555]
[1610093137875,0.01419763,38645.0,38630.0,0.78641555]
[1610093138073,0.01419763,38645.0,38631.0,0.0003194]
[1610093138375,0.01420257,38648.0,38631.0,0.0003194]
[1610093138775,0.01420751,38650.0,38647.0,0.13632608]
[1610093139376,0.01421057,38651.0,38648.0,0.00031964]
[1610093139979,0.42223673,38652.0,38647.0,0.13632608]
[1610093139980,0.01422106,38654.0,38647.0,0.13632608]
[1610093140278,0.01422644,38653.0,38647.0,0.13632608]
[1610093140676,0.01422644,38653.0,38648.0,0.00031701]
[1610093140978,0.01422644,38653.0,38652.0,0.13632608]
[1610093141177,0.01423762,38654.0,38652.0,0.21719608]
[1610093141376,0.01423762,38654.0,38653.0,0.00031699]
[1610093141577,0.01424051,38655.0,38653.0,0.00031699]
[1610093141979,0.43758022,38657.0,38653.0,0.00031699]
[1610093142585,0.01424745,38657.0,38653.0,0.00031699]
[1610093142782,0.01424745,38657.0,38656.0,0.13632608]
[1610093143484,0.01425583,38658.0,38656.0,0.13474658]
[1610093143783,0.01425306,38659.0,38656.0,0.13506356]
[1610093144183,0.01425306,38659.0,38656.0,0.13474658]
[1610093144583,0.01424454,38658.0,38656.0,0.13474658]
[1610093144784,0.13632608,38657.0,38656.0,0.13474658]
[1610093145385,0.13632608,38657.0,38652.0,0.08087]
[1610093145586,0.55912133,38657.0,38652.0,0.08087]
[1610093145987,0.01422559,38655.0,38652.0,0.08087]
[1610093146487,0.15055895,38657.0,38641.0,0.10963]
[1610093146787,0.13632608,38657.0,38656.0,0.13632608]
[1610093146987,0.01423533,38659.0,38656.0,0.13632608]
[1610093147189,0.01424605,38662.0,38656.0,0.25825608]
[1610093147587,0.43733646,38664.0,38656.0,0.25825608]
[1610093148086,0.43762131,38666.0,38656.0,0.25825608]
[1610093148486,0.50801881,38668.0,38656.0,0.25825608]
[1610093148487,0.01424888,38667.0,38656.0,0.25825608]
[1610093148786,0.01424888,38667.0,38666.0,0.13632608]
[1610093149388,0.01425172,38668.0,38666.0,0.13632608]
[1610093149688,0.43771655,38669.0,38666.0,0.13632608]
[1610093150090,0.01425698,38669.0,38666.0,0.13632608]
[1610093150490,0.01426893,38670.0,38666.0,0.13632608]
[1610093150891,0.01427451,38669.0,38666.0,0.13632608]
[1610093151793,0.43872935,38671.0,38666.0,0.13632608]
[1610093152293,0.01428714,38669.0,38666.0,0.13632608]
[1610093152696,0.01428742,38670.0,38666.0,0.13632608]
[1610093153099,0.01427708,38668.0,38666.0,0.13632608]
[1610093153296,0.01427708,38668.0,38665.0,0.09848]
[1610093153498,0.42386983,38667.0,38665.0,0.09848]
[1610093153796,0.42386983,38667.0,38656.0,0.12193]
[1610093153997,1.00860831,38666.0,38656.0,0.12193]
[1610093154198,1.00860831,38666.0,38645.0,3.6266]
[1610093154402,0.01422867,38660.0,38645.0,3.6266]
[1610093154603,0.01423146,38661.0,38645.0,3.6266]
[1610093155001,0.50707933,38661.0,38660.0,0.13632608]
[1610093155402,0.92963083,38661.0,38660.0,0.13632608]
[1610093155802,0.01424067,38662.0,38660.0,0.13632608]
[1610093156203,0.01425472,38665.0,38660.0,0.13632608]
[1610093156606,0.01425472,38665.0,38663.0,3.2519]
[1610093156805,0.42390812,38671.0,38663.0,3.3668]
[1610093157006,0.70641936,38680.0,38663.0,3.3668]
[1610093157007,0.4245798,38675.0,38665.0,0.13632608]
[1610093157507,0.42517789,38683.0,38666.0,0.00031684]
[1610093157805,0.42557216,38686.0,38666.0,0.00031684]
[1610093158204,0.51065823,38688.0,38666.0,0.00031684]
[1610093158205,0.42574761,38688.0,38666.0,0.00031684]
[1610093159105,0.42578114,38691.0,38687.0,0.13632608]
[1610093159406,0.42578114,38691.0,38687.0,0.26380608]
[1610093159605,0.42552391,38693.0,38687.0,0.26380608]
[1610093159904,0.37884555,38703.0,38687.0,0.26380608]
[1610093159905,0.42567231,38694.0,38687.0,0.26380608]
[1610093160105,0.51077841,38696.0,38687.0,0.26380608]
[1610093160306,0.42565223,38693.0,38687.0,0.26380608]
[1610093160805,1.24836456,38718.0,38687.0,0.26380608]
[1610093160806,0.425721,38694.0,38687.0,0.26380608]
[1610093161106,0.42557102,38695.0,38693.0,0.13632608]
[1610093161608,0.42576396,38698.0,38693.0,0.13632608]
[1610093161806,0.42576396,38698.0,38694.0,0.00031673]
[1610093162007,0.51088838,38700.0,38694.0,0.00031673]
[1610093162008,0.42603927,38700.0,38694.0,0.00031673]
[1610093162409,0.42633883,38701.0,38694.0,0.00031673]
[1610093162607,0.4262182,38703.0,38694.0,0.00031673]
[1610093162907,0.4262182,38703.0,38702.0,0.13632608]
[1610093163408,0.42556029,38704.0,38702.0,0.13632608]
[1610093163709,0.42556029,38704.0,38702.0,0.13664277]
[1610093163909,0.42577891,38706.0,38702.0,0.13664277]
[1610093164109,0.42577891,38706.0,38703.0,0.00031669]
[1610093164310,0.42601971,38708.0,38703.0,0.00031669]
[1610093164710,0.56809118,38718.0,38702.0,0.13506496]
[1610093164711,0.42550747,38709.0,38702.0,0.13506496]
[1610093164914,0.79415773,38724.0,38698.0,0.10748]
[1610093164915,0.42535947,38710.0,38708.0,0.13632608]
[1610093165112,0.42535947,38710.0,38687.0,3.29749713]
[1610093165312,0.42535947,38710.0,38701.0,0.12526]
[1610093165513,0.42563784,38713.0,38701.0,0.12526]
[1610093165817,0.42533164,38715.0,38702.0,0.00031657]
[1610093166217,0.4253707,38717.0,38702.0,0.00031657]
[1610093166712,0.37861845,38720.0,38702.0,0.00031657]
[1610093166713,0.00031545,38716.0,38702.0,0.00031657]
[1610093166915,0.42549183,38722.0,38715.0,0.13632608]
[1610093167513,0.00031544,38721.0,38716.0,0.00031654]
[1610093167718,0.00031544,38722.0,38716.0,0.00031654]
[1610093168012,0.00031544,38720.0,38716.0,0.00031654]
[1610093168214,0.09974,38723.0,38715.0,0.13632608]
[1610093168913,0.13632608,38718.0,38715.0,0.13632608]
[1610093170214,0.09974,38723.0,38715.0,0.60122608]
[1610093170416,0.42539627,38729.0,38715.0,0.13632608]
[1610093170614,0.42533266,38734.0,38719.0,3.4507]
[1610093170815,0.42533266,38734.0,38719.0,3.5409]
[1610093171019,0.42588322,38739.0,38733.0,0.13632608]
[1610093171420,0.42611985,38741.0,38733.0,0.13632608]
[1610093171718,0.42589193,38745.0,38733.0,0.13632608]
[1610093172217,0.42625578,38748.0,38733.0,0.13632608]
[1610093172717,0.42568339,38749.0,38733.0,0.13632608]
[1610093173017,0.13632608,38746.0,38745.0,0.13632608]
[1610093173419,0.13632608,38746.0,38745.0,0.0575003]
[1610093174118,0.13632608,38746.0,38727.0,0.1112]
[1610093175120,0.13632608,38728.0,38727.0,0.1112]
[1610093175419,0.13632608,38728.0,38719.0,0.0902]
[1610093175820,0.13632608,38728.0,38711.0,0.12227]
[1610093176224,0.13632608,38728.0,38704.0,3.3718]
[1610093177124,0.1049,38740.0,38715.0,0.13632608]
[1610093177828,0.54296614,38740.0,38715.0,0.13632608]
[1610093178024,0.54296614,38740.0,38713.0,0.11443]
[1610093178525,0.01425628,38739.0,38713.0,0.11443]
[1610093178833,0.1049,38740.0,38713.0,0.11443]
[1610093179134,0.1049,38740.0,38739.0,0.13632608]
[1610093179331,0.11568,38748.0,38739.0,0.13632608]
[1610093180025,0.43857715,38755.0,38739.0,0.13632608]
[1610093180227,0.01427991,38755.0,38739.0,0.13632608]
[1610093180626,0.01428487,38756.0,38739.0,0.13632608]
[1610093180929,0.01428342,38754.0,38739.0,0.13632608]
[1610093181126,0.01428342,38754.0,38747.0,0.13632608]
[1610093181428,0.4244013,38755.0,38732.0,0.10102]
[1610093181429,0.01428726,38755.0,38732.0,0.10102]
[1610093182226,0.014295,38754.0,38732.0,0.10102]
[1610093182626,0.01429673,38753.0,38732.0,0.10102]
[1610093183126,0.13632608,38733.0,38732.0,0.10102]
[1610093184327,0.13632608,38733.0,38731.0,0.13632608]
[1610093185427,0.13632608,38733.0,38724.0,0.07726]
[1610093185630,0.09281,38749.0,38713.0,0.11443]
[1610093185827,0.09281,38749.0,38725.0,0.00031637]
[1610093186030,0.09281,38749.0,38725.0,0.09922637]
[1610093186229,0.00031525,38748.0,38725.0,0.09891]
[1610093186430,0.00031525,38748.0,38726.0,0.00031632]
[1610093187029,0.00031525,38748.0,38745.0,0.13632608]
[1610093187631,0.00031518,38756.0,38735.0,0.10409]
[1610093189134,0.00031518,38756.0,38752.0,0.13632608]
[1610093189335,0.00031518,38756.0,38735.0,0.10409]
[1610093191234,0.00031518,38756.0,38753.0,0.13632608]
[1610093191640,0.00031518,38756.0,38753.0,0.05751879]
[1610093192838,0.00031518,38756.0,38732.0,0.03]
[1610093193236,0.13632608,38733.0,38732.0,0.03]
[1610093193736,0.13632608,38733.0,38732.0,0.0303163]
[1610093194838,0.13632608,38733.0,38732.0,0.03]
[1610093195040,0.13632608,38733.0,38702.0,0.2788]
[1610093195240,0.13632608,38726.0,38714.0,0.13632608]
[1610093195740,0.13632608,38726.0,38715.0,0.00031643]
[1610093196944,0.10361,38734.0,38715.0,0.00031643]
[1610093197241,0.23993608,38734.0,38729.0,0.13632608]
[1610093198643,0.23993608,38734.0,38729.0,0.13474924]
[1610093198941,0.00031532,38733.0,38729.0,0.13474924]
[1610093199244,0.13632608,38730.0,38729.0,0.13474924]
[1610093199444,0.13632608,38730.0,38719.0,0.0876]
[1610093199745,0.13632608,38730.0,38720.0,0.00031817]
[1610093200342,0.00031531,38729.0,38720.0,0.00031817]
[1610093201140,0.13632608,38721.0,38720.0,0.00031817]
[1610093203243,0.13632608,38721.0,38713.0,0.00031823]
[1610093203542,0.13632608,38721.0,38720.0,0.00031823]
[1610093203743,0.13632608,38721.0,38714.0,0.00031826]
[1610093204047,0.13632608,38721.0,38710.0,0.00031826]
[1610093204245,0.13632608,38721.0,38715.0,0.00031826]
[1610093204642,0.13632608,38721.0,38696.0,3.9406]
[1610093204643,0.13632608,38721.0,38711.0,0.00031826]
[1610093204842,0.13632608,38721.0,38702.0,0.00031826]
[1610093205043,0.13632608,38721.0,38712.0,0.00031826]
[1610093205343,0.13632608,38713.0,38711.0,0.13632608]
[1610093205545,0.13632608,38713.0,38712.0,0.00031826]
[1610093208645,0.42958781,38724.0,38712.0,0.00031826]
[1610093209347,0.42958781,38724.0,38723.0,0.13632608]
[1610093209550,0.43019318,38728.0,38723.0,0.13632608]
[1610093209747,0.43019318,38728.0,38724.0,0.00031817]
[1610093209948,0.43109061,38732.0,38724.0,0.00031817]
[1610093210250,0.43186645,38735.0,38724.0,0.00031817]
[1610093210751,0.43206991,38732.0,38723.0,0.13632608]
[1610093211252,0.13632608,38727.0,38723.0,0.13632608]
[1610093213254,0.13632608,38727.0,38719.0,0.13632608]
[1610093213851,0.56931171,38727.0,38720.0,0.00031814]
[1610093214553,0.43315273,38723.0,38710.0,0.00031814]
[1610093215051,0.43304352,38722.0,38710.0,0.00031814]
[1610093215252,0.13632608,38711.0,38710.0,0.00031814]
[1610093216954,0.13632608,38711.0,38674.0,3.2521]
[1610093216955,1.46806383,38711.0,38702.0,0.00031819]
[1610093217154,1.33173775,38711.0,38710.0,0.00031823]
[1610093217452,1.33173775,38711.0,38695.0,0.13632608]
[1610093217453,0.51934406,38704.0,38703.0,0.00031823]
[1610093217652,0.51934406,38704.0,38695.0,0.13632608]
[1610093217853,0.43310073,38704.0,38695.0,0.13632608]
[1610093218054,0.43310073,38704.0,38703.0,0.00031825]
[1610093218254,0.43281006,38702.0,38696.0,0.00031825]
[1610093218553,0.43281006,38702.0,38695.0,0.13632608]
[1610093218754,0.43281006,38702.0,38697.0,0.00031828]
[1610093219055,0.43318056,38701.0,38696.0,0.00031828]
[1610093219253,0.13632608,38697.0,38695.0,0.13632608]
[1610093219855,0.13632608,38697.0,38696.0,0.00031828]
[1610093221253,0.43316305,38699.0,38696.0,0.00031828]
[1610093221455,0.43355051,38701.0,38696.0,0.00031828]
[1610093221954,0.43384427,38702.0,38696.0,0.00031828]
[1610093222455,0.37857919,38715.0,38696.0,0.00031828]
[1610093222456,0.52085933,38706.0,38696.0,0.00031828]
[1610093222656,0.43441053,38705.0,38696.0,0.00031828]
[1610093223356,0.43441053,38705.0,38704.0,0.13632608]
[1610093223556,0.43476812,38706.0,38704.0,0.00031823]
[1610093224064,0.43476812,38706.0,38693.0,0.00031823]
[1610093224261,0.95600192,38705.0,38692.0,0.095]
[1610093224458,0.95600192,38705.0,38674.0,3.5369]
[1610093224661,0.43458789,38703.0,38694.0,0.00031824]
[1610093224958,0.43458789,38703.0,38675.0,0.0949365]
[1610093225160,0.43458789,38703.0,38695.0,0.00031824]
[1610093225361,0.13632608,38698.0,38697.0,0.13632608]
[1610093225659,0.13632608,38698.0,38697.0,0.13664432]
[1610093229365,0.13632608,38698.0,38697.0,0.13664434]
[1610093232670,0.13632608,38698.0,38697.0,0.00031826]
[1610093232970,0.13632608,38698.0,38694.0,0.00031828]
[1610093233170,0.13632608,38698.0,38697.0,0.00031828]
[1610093233572,0.13632608,38698.0,38695.0,0.00031828]
[1610093233870,0.13632608,38698.0,38697.0,0.00031828]
[1610093234071,0.13632608,38698.0,38696.0,0.00031828]
[1610093234273,0.13632608,38698.0,38697.0,0.00031828]
[1610093234875,0.57117965,38698.0,38694.0,0.00031828]
[1610093235172,0.13632608,38698.0,38697.0,0.00031828]
[1610093235372,0.13632608,38698.0,38694.0,0.00031828]
[1610093235572,0.13632608,38698.0,38697.0,0.00031828]
[1610093235972,0.13632608,38698.0,38695.0,0.00031828]
[1610093236172,0.13632608,38698.0,38693.0,0.08141]
[1610093236173,0.13632608,38698.0,38694.0,0.00031828]
[1610093236474,0.57108874,38698.0,38696.0,0.00031828]
[1610093236772,0.57108874,38698.0,38695.0,0.00031828]
[1610093236973,0.57108874,38698.0,38693.0,0.08141]
[1610093236974,0.13632608,38698.0,38694.0,0.00031828]
[1610093237174,0.13632608,38698.0,38696.0,0.00031828]
[1610093237376,0.13632608,38698.0,38697.0,0.13632608]
[1610093237777,0.13632608,38698.0,38697.0,0.13664436]
[1610093239479,0.13632608,38698.0,38697.0,0.00031828]
[1610093239884,4.33420395,38698.0,38685.0,0.08342]
[1610093240082,4.33420395,38698.0,38697.0,0.00031829]
[1610093240284,4.8560296,38698.0,38667.0,0.09268]
[1610093240481,5.98239755,38698.0,38667.0,0.09268]
[1610093240781,4.00960608,38698.0,38697.0,0.00031833]
[1610093240983,4.00960608,38698.0,38668.0,0.03187308]
[1610093241181,8.07951711,38698.0,38697.0,5e-08]
[1610093241381,0.43309486,38678.0,38669.0,0.0003184]
[1610093241580,0.43309486,38678.0,38659.0,0.03187896]
[1610093241783,0.43308384,38677.0,38659.0,0.03187896]
[1610093241983,0.43308384,38677.0,38658.0,0.13632608]
[1610093242181,0.43308384,38677.0,38660.0,0.03187873]
[1610093242385,0.43308384,38677.0,38658.0,0.13632608]
[1610093242386,0.43308384,38677.0,38659.0,0.00031837]
[1610093242682,0.43308384,38677.0,38661.0,0.00031837]
[1610093242882,0.43308384,38677.0,38660.0,0.00031837]
[1610093243282,0.43308384,38677.0,38665.0,0.13632608]
[1610093243483,0.12262,38678.0,38665.0,0.13632608]
[1610093243684,0.12262,38678.0,38666.0,0.00031837]
[1610093243885,0.55538497,38678.0,38666.0,0.00031837]
[1610093244284,0.12262,38678.0,38666.0,0.00031837]
[1610093245287,0.12262,38678.0,38665.0,0.13632608]
[1610093245488,0.13632608,38680.0,38677.0,0.13632608]
[1610093245789,0.08529,38687.0,38678.0,0.00031831]
[1610093245988,0.432799,38686.0,38678.0,0.00031831]
[1610093246489,0.43351987,38694.0,38678.0,0.03186563]
[1610093246689,0.5445292,38698.0,38678.0,0.03186563]
[1610093246887,0.4341492,38698.0,38678.0,0.03186563]
[1610093247389,0.43451336,38700.0,38697.0,0.13632608]
[1610093247790,0.13632608,38701.0,38694.0,0.12048]
[1610093247991,0.13632608,38701.0,38698.0,0.00031813]
[1610093248192,0.13632608,38701.0,38695.0,0.0003181]
[1610093248992,0.13632608,38701.0,38700.0,0.0003181]
[1610093249191,0.13632608,38701.0,38696.0,0.0003181]
[1610093249491,0.13632608,38697.0,38695.0,0.0003181]
[1610093249791,0.03057264,38678.0,38677.0,0.4533]
[1610093250491,0.03057264,38678.0,38677.0,0.4851528]
[1610093251490,0.03057264,38678.0,38677.0,0.62147888]
[1610093252193,0.03057264,38678.0,38677.0,0.68454786]
[1610093252392,0.4365172,38701.0,38677.0,0.68454786]
[1610093252594,0.4365172,38701.0,38677.0,0.62147888]
[1610093252796,0.43723544,38703.0,38678.0,0.09491771]
[1610093253494,0.43786971,38705.0,38702.0,0.13632608]
[1610093253895,0.43820507,38709.0,38702.0,0.13664407]
[1610093254093,0.43820507,38709.0,38703.0,0.00031799]
[1610093254896,0.43882072,38711.0,38703.0,0.00031799]
[1610093255095,0.43862686,38710.0,38702.0,0.13632608]
[1610093255298,0.43862686,38710.0,38704.0,0.00031799]
[1610093255495,0.13632608,38705.0,38704.0,0.00031799]
[1610093255895,0.13632608,38705.0,38703.0,0.00031799]
[1610093256095,0.13632608,38705.0,38704.0,0.00031799]
[1610093256695,0.13632608,38705.0,38701.0,0.00031799]
[1610093256895,0.13632608,38705.0,38704.0,0.00031803]
[1610093257296,0.13632608,38705.0,38702.0,0.00031803]
[1610093257499,1.10002381,38705.0,38701.0,0.00031801]
[1610093257698,1.10002381,38705.0,38703.0,0.00031801]
[1610093258001,0.66196612,38705.0,38702.0,0.00031801]
[1610093258199,3.4904,38703.0,38701.0,0.00031801]
[1610093258598,3.4904,38703.0,38664.0,0.11237]
[1610093258900,0.43779818,38702.0,38673.0,0.03152935]
[1610093259099,4.1728,38683.0,38665.0,0.03184823]
[1610093259305,4.1728,38683.0,38674.0,0.03184917]
[1610093259501,4.1728,38683.0,38682.0,0.13632608]
[1610093259701,0.43700255,38695.0,38682.0,0.13632608]
[1610093259901,0.43700255,38695.0,38682.0,0.24165608]
[1610093260102,0.43700255,38695.0,38683.0,0.00031836]
[1610093260402,0.43747181,38694.0,38683.0,0.00031836]
[1610093260703,4.0489,38686.0,38683.0,0.00031836]
[1610093260900,4.0489,38686.0,38683.0,0.03185432]
[1610093261102,4.0489,38686.0,38683.0,0.00031836]
[1610093261401,4.0489,38686.0,38684.0,0.00031838]
[1610093261702,0.13632608,38685.0,38683.0,0.00031838]
[1610093262001,0.13632608,38685.0,38684.0,0.00031838]
[1610093262302,0.13632608,38685.0,38683.0,0.00031836]
[1610093262500,0.13632608,38685.0,38683.0,0.03185385]
[1610093263602,0.13632608,38685.0,38683.0,0.03153549]
[1610093263803,0.13632608,38685.0,38684.0,0.00031835]
[1610093264306,0.13632608,38685.0,38684.0,0.00063669]
[1610093266904,0.43930415,38696.0,38684.0,0.00063669]
[1610093267407,0.43946775,38697.0,38685.0,0.00031834]
[1610093267607,0.43946775,38697.0,38696.0,0.13632608]
[1610093267806,0.43946775,38697.0,38685.0,0.00031834]
[1610093268006,0.43946775,38697.0,38696.0,0.00031834]
[1610093268306,0.43962937,38696.0,38686.0,0.00031834]
[1610093268507,0.43962937,38696.0,38684.0,0.00031835]
[1610093268705,0.43968458,38697.0,38685.0,0.00031833]
[1610093269106,0.52752595,38698.0,38685.0,0.00031833]
[1610093269107,0.43982972,38698.0,38685.0,0.00031833]
[1610093269409,0.43993263,38697.0,38685.0,0.00031833]
[1610093269609,0.43993263,38697.0,38691.0,0.13632608]
[1610093269808,0.05629156,38685.0,38684.0,0.00031835]
[1610093270008,0.05629156,38685.0,38684.0,0.00063666]
[1610093270308,0.05629156,38685.0,38684.0,0.00031835]
[1610093270709,0.05629156,38685.0,38684.0,0.00031831]
[1610093271113,0.05629156,38685.0,38683.0,0.0318508]
[1610093271313,0.05629156,38685.0,38684.0,0.00031831]
[1610093271512,0.19261764,38685.0,38684.0,0.13664439]
[1610093271913,0.19261764,38685.0,38684.0,0.16817703]
[1610093273514,0.19261764,38685.0,38684.0,0.16785872]
[1610093273715,0.19261764,38685.0,38684.0,0.16817702]
[1610093275917,0.05629156,38685.0,38684.0,0.16817702]
[1610093277520,0.53076659,38699.0,38684.0,0.16817702]
[1610093277720,0.52982521,38700.0,38684.0,0.16817702]
[1610093278120,0.53023721,38704.0,38684.0,0.16817702]
[1610093278319,0.53023721,38704.0,38685.0,0.03184395]
[1610093278521,0.53058639,38708.0,38685.0,0.03184395]
[1610093279020,1.45043481,38718.0,38685.0,0.03184395]
[1610093279021,0.53058871,38709.0,38685.0,0.03184395]
[1610093279420,0.82527836,38722.0,38685.0,0.03184395]
[1610093279421,0.53176696,38717.0,38685.0,0.03184395]
[1610093279620,0.53176696,38717.0,38716.0,0.13632608]
[1610093279821,0.13632608,38718.0,38716.0,0.13632608]
[1610093280020,0.13632608,38718.0,38716.0,0.24033419]
[1610093280323,0.13632608,38718.0,38717.0,0.00031811]
[1610093287923,1.04628033,38718.0,38717.0,0.00031811]
[1610093288724,1.69577893,38718.0,38716.0,0.10369]
[1610093289126,2.26332274,38718.0,38696.0,0.13632608]
[1610093289424,1.18053059,38717.0,38697.0,0.03152446]
[1610093289724,0.13632608,38698.0,38697.0,0.03184265]
[1610093293025,0.13632608,38698.0,38693.0,0.0318375]
[1610093293227,0.13632608,38698.0,38697.0,0.03183839]
[1610093293526,0.13632608,38698.0,38697.0,0.12138]
[1610093293728,3.24552608,38698.0,38697.0,0.15322031]
[1610093294230,3.24552608,38698.0,38697.0,0.12169816]
[1610093297728,0.13632608,38698.0,38697.0,0.12169816]
[1610093299128,0.64602608,38698.0,38697.0,0.12169816]
[1610093303737,1.55554952,38698.0,38697.0,0.12169816]
[1610093304639,2.20550283,38698.0,38697.0,0.12169816]
[1610093304844,3.70550283,38698.0,38697.0,0.02139816]
[1610093305039,3.70550283,38698.0,38697.0,0.01982099]
[1610093305241,3.70550283,38698.0,38697.0,0.00031816]
[1610093305540,4.44421946,38698.0,38697.0,0.00031816]
[1610093306040,3.93451946,38698.0,38697.0,0.0003183]
[1610093306445,9.61332252,38698.0,38643.0,3.6929]
[1610093306642,9.04543295,38698.0,38697.0,0.00031834]
[1610093306841,9.04543295,38698.0,38665.0,0.0318571]
[1610093307044,0.53040379,38679.0,38665.0,0.0318571]
[1610093307342,0.5503,38660.0,38656.0,0.08711]
[1610093307542,0.1101,38677.0,38657.0,0.03186108]
[1610093307743,0.13632608,38658.0,38657.0,0.03186108]
[1610093307943,0.73782608,38658.0,38657.0,0.00031832]
[1610093312249,0.73782608,38658.0,38656.0,0.08711]
[1610093312549,0.73782608,38658.0,38657.0,0.00031846]
[1610093312750,0.73782608,38658.0,38636.0,0.13632608]
[1610093312949,0.13632608,38658.0,38636.0,0.13632608]
[1610093313250,3.854,38642.0,38637.0,0.00031846]
[1610093313451,0.13632608,38658.0,38637.0,0.00031846]
[1610093313651,3.35982608,38638.0,38637.0,0.10006846]
[1610093313950,3.35982608,38638.0,38637.0,0.09975]
[1610093314153,0.13632608,38638.0,38637.0,0.09975]
[1610093314353,0.13632608,38638.0,38637.0,0.10006852]
[1610093314750,0.65862608,38638.0,38637.0,0.10006852]
[1610093316253,0.13632608,38638.0,38637.0,0.10006852]
[1610093316552,0.13632608,38638.0,38637.0,0.09975]
[1610093317059,3.32592608,38638.0,38637.0,0.09975]
[1610093317555,0.13632608,38638.0,38637.0,0.09975]
[1610093318057,0.71382608,38638.0,38637.0,0.09975]
[1610093318956,0.71382608,38638.0,38606.0,3.9167]
[1610093319155,0.71382608,38638.0,38607.0,0.03156954]
[1610093319456,0.71382608,38638.0,38607.0,0.12007813]
[1610093319656,0.13632608,38620.0,38619.0,0.13632608]
[1610093320056,0.13632608,38620.0,38619.0,0.0003185]
[1610093320358,4.20352608,38620.0,38619.0,0.0003185]
[1610093320556,4.20352608,38620.0,38608.0,0.00032038]
[1610093320757,4.20352608,38620.0,38607.0,0.08819]
[1610093321158,4.20352608,38620.0,38609.0,0.00032047]
[1610093321355,4.20352608,38620.0,38607.0,0.08819]
[1610093321756,0.13632608,38608.0,38607.0,0.08819]
[1610093322259,3.05142608,38608.0,38607.0,0.08819]
[1610093323159,3.05142608,38608.0,38580.0,0.13632608]
[1610093323759,2.9151,38608.0,38581.0,0.00032063]
[1610093324160,2.9151,38608.0,38581.0,0.11246063]
[1610093324559,2.9151,38608.0,38582.0,0.00032065]
[1610093325361,2.9151,38608.0,38581.0,0.11214]
[1610093325760,0.13632608,38582.0,38581.0,0.11214]
[1610093326861,3.99832608,38582.0,38581.0,0.11214]
[1610093328463,0.13632608,38582.0,38581.0,0.11214]
[1610093329163,0.13632608,38582.0,38580.0,0.13632608]
[1610093330364,0.09687,38617.0,38580.0,0.13632608]
[1610093330566,0.09687,38617.0,38581.0,3.4664]
[1610093330964,0.09687,38617.0,38580.0,0.23129608]
[1610093330965,0.09687,38617.0,38591.0,3.4739]
[1610093331164,0.07748,38625.0,38591.0,3.4739]
[1610093331365,0.01434514,38641.0,38591.0,3.60038]
[1610093331566,0.0791,38642.0,38591.0,3.60038]
[1610093331764,0.0791,38642.0,38611.0,0.13632608]
[1610093331965,0.42692513,38648.0,38611.0,0.13632608]
[1610093331966,0.44171968,38650.0,38611.0,0.13632608]
[1610093332366,0.01438335,38651.0,38611.0,0.13632608]
[1610093333369,0.2871,38654.0,38611.0,0.13632608]
[1610093333768,0.13632608,38612.0,38607.0,0.23330608]
[1610093335770,0.13632608,38612.0,38611.0,0.13632608]
[1610093336971,0.12461,38645.0,38611.0,0.13632608]
[1610093337575,2.8987,38664.0,38614.0,3.3111]
[1610093337772,0.51677685,38672.0,38612.0,0.00032038]
[1610093337773,0.51677685,38672.0,38626.0,0.13632608]
[1610093337976,0.51677685,38672.0,38626.0,0.22028608]
[1610093338175,0.51676043,38671.0,38626.0,0.22028608]
[1610093338479,0.60524043,38671.0,38626.0,0.22028608]
[1610093338676,0.08848,38671.0,38626.0,0.22028608]
[1610093338976,3.2095,38662.0,38627.0,0.00032031]
[1610093339778,3.2095,38662.0,38631.0,0.13632608]
[1610093340377,3.2095,38662.0,38626.0,0.08396]
[1610093340678,3.32862,38662.0,38626.0,0.08396]
[1610093341278,3.32862,38662.0,38627.0,0.00032032]
[1610093341880,0.11912,38662.0,38627.0,0.00032032]
[1610093342081,0.11912,38662.0,38627.0,4.09122032]
[1610093342581,0.11912,38662.0,38628.0,0.00032028]
[1610093343181,0.08848,38671.0,38628.0,0.00032028]
[1610093343482,4.3051,38678.0,38628.0,0.00032028]
[1610093343780,0.13632608,38649.0,38648.0,0.13632608]
[1610093344385,0.11575,38674.0,38648.0,0.13632608]
[1610093344583,0.11575,38674.0,38648.0,0.24118608]
[1610093345282,0.11575,38674.0,38649.0,0.00032019]
[1610093345885,0.13632608,38650.0,38649.0,0.00032019]
[1610093346283,0.13632608,38650.0,38648.0,0.10486]
[1610093347187,3.5854,38649.0,38648.0,0.10486]
[1610093347784,3.5854,38649.0,38626.0,0.08396]
[1610093347986,3.5854,38649.0,38620.0,0.13632608]
[1610093348185,3.5854,38649.0,38627.0,0.00032027]
[1610093348487,3.5854,38649.0,38627.0,0.08338]
[1610093348788,3.5854,38649.0,38628.0,0.00032027]
[1610093349888,0.13632608,38629.0,38628.0,0.00032027]
[1610093358303,0.13632608,38629.0,38628.0,0.03188959]